fUSD/lending_fUSD_20250614
["ID","MTS","AMOUNT","RATE_DAILY","PERIOD"]
[365746447,1749869447352,-199.105572,0.00017797,2]
[365746448,1749869447361,-199.105572,0.00017797,2]
[365746449,1749869447370,-151.0,0.00017797,2]
[365746450,1749869447380,-283.7302,0.000178,2]
[365746451,1749869447390,-1500.0,0.00017808,7]
[365746452,1749869447399,-1500.0,0.00017808,7]
[365746453,1749869447408,-1500.0,0.00017808,7]
[365746454,1749869447418,-1500.0,0.00017808,7]
[365746455,1749869447427,-1500.0,0.00017808,7]
[365746456,1749869447437,-1500.0,0.00017808,7]
[365746457,1749869447447,-1500.0,0.00017808,7]
[365746458,1749869447456,-1500.0,0.00017808,7]
[365746459,1749869447466,-1500.0,0.00017808,7]
[365746460,1749869447477,-1500.0,0.00017808,7]
[365746461,1749869447487,-1500.0,0.00017808,7]
[365746462,1749869447496,-1500.0,0.00017808,7]
[365746463,1749869447506,-1500.0,0.00017808,7]
[365746464,1749869447516,-841.212325,0.00017808,7]
[365746465,1749869447525,-1010.1304863,0.00017852,2]
[365746466,1749869447534,-243.42543503,0.00017873,2]
[365746467,1749869447545,-151.631305,0.00017888,2]
[365746468,1749869447554,-153.023078,0.00017888,2]
[365746469,1749869447564,-5530.3781066,0.00017888,2]
[365746470,1749869447573,-3077.4095751,0.00017888,2]
[365746471,1749869447584,-833.1478817,0.00017888,2]
[365746472,1749869447594,-202.5237893,0.00017888,2]
[365746473,1749869447603,-104607.0410615,0.00017888,2]
[365746474,1749869447613,-151.0,0.00017889,2]
[365746475,1749869447623,-152.430448,0.00017889,2]
[365746476,1749869447632,-199.105572,0.00017889,2]
[365746477,1749869447642,-199.105572,0.00017889,2]
[365746478,1749869447652,-252.0,0.000179,2]
[365746479,1749869447663,-151.0,0.000179,2]
[365746480,1749869447673,-151.0,0.000179,2]
[365746481,1749869447683,-151.0,0.000179,2]
[365746482,1749869447693,-151.649927,0.000179,2]
[365746483,1749869447703,-199.105572,0.000179,2]
[365746484,1749869447714,-199.105572,0.000179,2]
[365746485,1749869447724,-199.105572,0.000179,2]
[365746486,1749869447734,-199.105576,0.000179,2]
[365746487,1749869447745,-2289.94178107,0.000179,2]
[365746488,1749869447754,-159.38030263,0.000179,2]
[365746489,1749869447764,-200.998239,0.00017989,2]
[365746490,1749869447774,-143344.97741104,0.00018,2]
[365746491,1749869448828,-11073.0,0.00018,2]
[365746492,1749869530551,154.9,0.00013699,2]
[365746496,1749869591764,175.0,0.00016,2]
[365746497,1749869592021,175.0,0.00016,2]
[365746499,1749869623697,533.28,0.00015766,2]
[365746500,1749869651777,157.0,0.00016,2]
[365746502,1749869707612,157.0,0.00016,2]
[365746505,1749869766571,157.0,0.00016,2]
[365746508,1749869830988,157.0,0.00016,2]
[365746509,1749869888504,157.0,0.00016,2]
[365746510,1749869947300,157.0,0.00016,2]
[365746512,1749870006448,158.0,0.00016,2]
[365746513,1749870066105,158.0,0.00016,2]
[365746514,1749870126956,158.0,0.00016,2]
[365746515,1749870185429,158.0,0.00016,2]
[365746517,1749870247758,158.0,0.00016,2]
[365746519,1749870311964,158.0,0.00016,2]
[365746524,1749870366590,158.0,0.00016,2]
[365746533,1749870426030,158.0,0.00016,2]
[365746546,1749870491314,158.0,0.00016,2]
[365746547,1749870491951,200.0,0.00015167,2]
[365746548,1749870492213,200.0,0.00015677,2]
[365746549,1749870526449,154.9,0.00013699,2]
[365746552,1749870552312,158.0,0.00016,2]
[365746556,1749870608253,158.0,0.00016,2]
[365746561,1749870632624,-200.0,0.00016105,2]
[365746562,1749870632636,-200.0,0.00016186,3]
[365746563,1749870632650,-200.0,0.00016696,3]
[365746565,1749870632659,-54.174015,0.00016705,2]
[365746566,1749870632678,-245.825985,0.00016705,2]
[365746567,1749870632688,-358.22487585,0.00016706,2]
[365746568,1749870632704,-1159.37732893,0.00016706,2]
[365746585,1749870637925,-667.13511448,0.00016706,2]
[365746589,1749870637980,-4180.31456499,0.00016706,2]
[365746590,1749870637992,-2534.88432465,0.00016706,2]
[365746591,1749870638034,-402.04444686,0.00016706,2]
[365746592,1749870638045,-389.57019752,0.00016706,2]
[365746593,1749870638193,-1969.0,0.00016706,2]
[365746594,1749870638205,-277.57103379,0.00016706,2]
[365746595,1749870638216,-3202.17428945,0.00016706,2]
[365746596,1749870638228,-1203.81270089,0.00016706,2]
[365746597,1749870638245,-4991.10656599,0.00016706,2]
[365746598,1749870638257,-582.78092417,0.00016706,2]
[365746787,1749870640198,-3470.53647137,0.00016706,2]
[365746789,1749870640210,-2049.54334321,0.00016706,2]
[365746819,1749870668043,158.0,0.00016,2]
[365746820,1749870728379,158.0,0.00016,2]
[365746821,1749870748840,506.61,0.00015506,2]
[365746823,1749871213655,200.0,0.00015205,2]
[365746824,1749871213921,200.0,0.00015738,2]
[365746828,1749871571663,200.0,0.00015272,2]
[365746829,1749871571926,200.0,0.00015817,2]
[365746912,1749871789589,481.27,0.00015453,2]
[365746919,1749871832090,-200.0,0.00016363,3]
[365746921,1749871832099,-232.32632991,0.00016506,2]
[365746923,1749871832110,-790.6471536,0.00016506,2]
[365746925,1749871832123,-238.64983403,0.00016605,2]
[365746929,1749871832146,-162.49308843,0.00016605,2]
[365746930,1749871832155,-366.47367951,0.00016605,2]
[365746931,1749871832165,-171.69657905,0.00016605,2]
[365746932,1749871832174,-186.96450207,0.00016606,2]
[365746933,1749871832183,-440.80774779,0.00016606,2]
[365746934,1749871832203,-676.42379017,0.00016606,2]
[365746935,1749871832214,-454.40958204,0.00016606,2]
[365746936,1749871832225,-5692.64918,0.00016606,2]
[365746937,1749871832234,-404.9468,0.00016606,2]
[365746938,1749871832244,-160440.04925847,0.00016606,2]
[365746939,1749871832255,-112058.82049122,0.00016606,2]
[365746940,1749871832265,-2500.0,0.00016606,2]
[365746941,1749871832276,-2002.68787079,0.00016686,2]
[365746942,1749871832313,-1104.21156385,0.00016686,2]
[365746949,1749871838124,-674.21531975,0.00016686,2]
[365746950,1749871838179,-960.86646857,0.00016686,2]
[365746952,1749871838446,-3454.63046133,0.00016686,2]
[365747094,1749871840330,-298.19581016,0.00016686,2]
[365747096,1749871840342,-272.49230327,0.00016686,2]
[365747106,1749871840440,-283.68663972,0.00016686,2]
[365747358,1749871843360,-3934.00522253,0.00016686,2]
[365747402,1749871846412,-8038.69284314,0.00016686,2]
[365747413,1749871882196,154.9,0.00013699,2]
[365747414,1749871931719,200.0,0.00015908,2]
[365747418,1749872191973,6659.548113,0.0002,30]
[365747419,1749872251326,5564.0,0.000153,5]
[365747420,1749872251561,5564.0,0.000151,3]
[365747422,1749872291721,200.0,0.00015459,2]
[365747440,1749872651740,200.0,0.00015016,2]
[365747441,1749872652021,200.0,0.00015586,2]
[365747479,1749872862059,154.9,0.00013699,2]
[365747486,1749873011698,200.0,0.00015155,2]
[365747487,1749873012022,200.0,0.00015737,2]
[365747491,1749873032377,-600.0,0.00016201,4]
[365747492,1749873032386,-200.0,0.0001632,3]
[365747493,1749873032396,-95.30918116,0.00016325,2]
[365747494,1749873032406,-305.32,0.00016325,2]
[365747495,1749873032483,-36.39774052,0.00016325,2]
[365747496,1749873032496,-163.07,0.00016436,2]
[365747497,1749873032507,-200.0,0.00016436,2]
[365747498,1749873032516,-2081.52,0.00016441,2]
[365747499,1749873032525,-600.0,0.00016444,4]
[365747500,1749873032534,-666.0,0.00016683,2]
[365747501,1749873032546,-300.0,0.00016684,2]
[365747502,1749873032555,-1200.0,0.00016684,2]
[365747503,1749873032564,-300.0,0.00016685,2]
[365747504,1749873032575,-5732.5894594,0.00016686,2]
[365747505,1749873032584,-24672.92599753,0.00016686,2]
[365747506,1749873032595,-200.0,0.00016706,2]
[365747507,1749873032605,-499.50356657,0.00016799,2]
[365747508,1749873032614,-586.86710089,0.00016847,2]
[365747509,1749873032623,-200.0,0.00016873,2]
[365747510,1749873032633,-200.0,0.00016902,4]
[365747511,1749873032642,-1062.33470923,0.00016929,2]
[365747512,1749873032652,-251.54599156,0.00017003,2]
[365747513,1749873032662,-166.26,0.00017017,2]
[365747514,1749873032672,-524.55553036,0.00017017,2]
[365747515,1749873032683,-151.0,0.00017038,2]
[365747516,1749873032693,-1957.856,0.00017038,2]
[365747517,1749873032703,-1000.0,0.00017038,2]
[365747518,1749873032714,-1000.0,0.00017038,2]
[365747519,1749873032723,-1000.0,0.00017038,2]
[365747520,1749873032733,-1000.0,0.00017038,2]
[365747521,1749873032744,-1000.0,0.00017038,2]
[365747522,1749873032753,-1000.0,0.00017038,2]
[365747524,1749873032762,-1000.0,0.00017038,2]
[365747525,1749873032771,-1000.0,0.00017038,2]
[365747526,1749873032780,-1000.0,0.00017038,2]
[365747527,1749873032789,-1000.0,0.00017038,2]
[365747528,1749873032799,-207.4,0.00017038,2]
[365747529,1749873032807,-1000.0,0.00017038,2]
[365747530,1749873032816,-1000.0,0.00017038,2]
[365747531,1749873032825,-1000.0,0.00017038,2]
[365747532,1749873032834,-1000.0,0.00017038,2]
[365747533,1749873032844,-1000.0,0.00017038,2]
[365747534,1749873032853,-200.0,0.00017042,2]
[365747535,1749873032863,-597.0,0.00017073,2]
[365747536,1749873032874,-2030.296672,0.00017093,2]
[365747537,1749873032884,-557.06191531,0.00017132,2]
[365747538,1749873032897,-194.93808469,0.00017132,2]
[365747539,1749873032908,-525.68173841,0.00017148,2]
[365747541,1749873032919,-309.84331997,0.00017148,2]
[365747543,1749873032935,-581.76910999,0.00017148,2]
[365747967,1749873038379,-688.12348049,0.00017148,2]
[365747968,1749873038389,-597.0,0.00017159,2]
[365747969,1749873038398,-6.82651951,0.00017178,2]
[365747970,1749873038485,-403.20830887,0.00017178,2]
[365747971,1749873038597,-186.96517162,0.00017178,2]
[365747972,1749873038608,-2000.0,0.000172,2]
[365747973,1749873038618,-2183.31810187,0.00017203,2]
[365747974,1749873038628,-200.0,0.00017212,2]
[365747975,1749873038638,-1902.28272204,0.00017258,2]
[365747976,1749873038647,-611.0,0.00017279,2]
[365747977,1749873038657,-178.2,0.00017359,2]
[365747978,1749873038667,-1000.0,0.0001736,2]
[365747979,1749873038676,-200.0,0.00017384,2]
[365747980,1749873038686,-200.0,0.00017485,5]
[365747981,1749873038695,-600.0,0.00017618,4]
[365747982,1749873038705,-250.0,0.00017618,2]
[365747984,1749873038715,-150.0,0.00017618,4]
[365747986,1749873038724,-153.17033521,0.00017618,4]
[365747988,1749873038734,-150.0,0.00017618,4]
[365747989,1749873038744,-150.0,0.00017618,2]
[365747990,1749873038753,-150.0,0.00017618,4]
[365747992,1749873038764,-204.33113071,0.00017618,4]
[365747994,1749873038773,-150.0,0.00017618,2]
[365747995,1749873038783,-150.0,0.00017618,4]
[365747997,1749873038792,-152.17638607,0.00017618,4]
[365747999,1749873038801,-150.0,0.00017618,4]
[365748000,1749873038811,-150.96623907,0.00017618,2]
[365748002,1749873038820,-150.49873315,0.00017618,4]
[365748004,1749873038829,-151.72894954,0.00017618,4]
[365748005,1749873038839,-150.46734682,0.00017618,4]
[365748006,1749873038849,-932.187631,0.0001764,2]
[365748007,1749873038858,-150.0,0.00017645,4]
[365748008,1749873038868,-150.0,0.00017645,4]
[365748010,1749873038877,-150.0,0.00017645,2]
[365748012,1749873038886,-150.0,0.00017645,4]
[365748014,1749873038894,-150.0,0.00017645,2]
[365748016,1749873038904,-150.0,0.00017645,4]
[365748018,1749873038913,-150.0,0.00017645,4]
[365748020,1749873038923,-205.20248437,0.00017673,4]
[365748022,1749873038932,-216.13991443,0.00017673,4]
[365748024,1749873038942,-200.0,0.00017673,2]
[365748026,1749873038951,-200.0,0.00017673,4]
[365748028,1749873038960,-150.0,0.00017673,4]
[365748030,1749873038969,-202.02454441,0.00017673,4]
[365748032,1749873038978,-244.0,0.000177,4]
[365748034,1749873038988,-481.27,0.00017717,2]
[365748036,1749873038997,-1007.0,0.000178,2]
[365748038,1749873039006,-269.0,0.00017812,2]
[365748040,1749873039016,-150.0,0.00017822,2]
[365748042,1749873039025,-150.42632083,0.00017822,2]
[365748044,1749873039035,-150.0,0.00017822,2]
[365748046,1749873039043,-150.0,0.00017822,2]
[365748048,1749873039052,-151.47347771,0.00017822,2]
[365748050,1749873039061,-150.66711313,0.00017822,2]
[365748052,1749873039071,-153.39667127,0.00017822,2]
[365748054,1749873039080,-150.0,0.00017822,2]
[365748056,1749873039089,-150.60586234,0.00017822,2]
[365748058,1749873039099,-152.95539089,0.00017822,2]
[365748060,1749873039108,-151.9295218,0.00017822,2]
[365748062,1749873039118,-153.07533106,0.00017822,2]
[365748064,1749873039127,-150.20986126,0.00017822,2]
[365748066,1749873039137,-150.0,0.00017822,2]
[365748068,1749873039147,-150.0,0.00017822,2]
[365748070,1749873039156,-150.0,0.00017822,2]
[365748072,1749873039165,-151.54850465,0.00017822,2]
[365748074,1749873039174,-154.37777663,0.00017822,2]
[365748076,1749873039183,-150.0,0.00017822,2]
[365748078,1749873039195,-155.90329599,0.00017822,2]
[365748080,1749873039205,-150.0,0.00017822,2]
[365748082,1749873039215,-250.0,0.00017822,2]
[365748084,1749873039224,-600.0,0.00017822,4]
[365748086,1749873039234,-150.0,0.00017849,2]
[365748088,1749873039243,-150.0,0.00017849,2]
[365748090,1749873039252,-150.0,0.00017849,2]
[365748092,1749873039262,-150.0,0.00017849,2]
[365748094,1749873039271,-150.0,0.00017849,2]
[365748096,1749873039282,-500.0,0.00017856,2]
[365748098,1749873039292,-200.0,0.00017856,2]
[365748100,1749873039301,-376.0,0.00017869,2]
[365748102,1749873039311,-205.71163978,0.00017877,2]
[365748104,1749873039320,-200.0,0.00017877,2]
[365748106,1749873039330,-201.31927875,0.00017877,2]
[365748108,1749873039340,-202.07311355,0.00017877,2]
[365748110,1749873039349,-200.37185505,0.00017877,2]
[365748112,1749873039359,-1435.8254,0.00017894,2]
[365748114,1749873039368,-3169.527371,0.00017894,2]
[365748116,1749873039377,-2000.0,0.000179,2]
[365748118,1749873039386,-177.14875673,0.000179,2]
[365748120,1749873039396,-158.868472,0.000179,2]
[365748122,1749873039405,-2215.18061724,0.000179,2]
[365748209,1749873040627,-124.9530925,0.000179,2]
[365748210,1749873040638,-247.92493855,0.00017919,2]
[365748217,1749873043391,-25.23246391,0.00017919,2]
[365748218,1749873043400,-502.81348365,0.00017973,2]
[365748219,1749873043410,-508.62881565,0.00017973,2]
[365748220,1749873043419,-509.06864471,0.00017973,2]
[365748221,1749873043427,-505.51044483,0.00017973,2]
[365748222,1749873043437,-94.34614725,0.00017973,2]
[365748223,1749873043570,-328.02677006,0.00017973,2]
[365748242,1749873046347,-78.58625847,0.00017973,2]
[365748243,1749873046358,-501.99317053,0.00017973,2]
[365748244,1749873046368,-502.52602692,0.00017973,2]
[365748245,1749873046377,-505.09160581,0.00017973,2]
[365748246,1749873046386,-501.83953636,0.00017973,2]
[365748247,1749873046396,-500.55203055,0.00017973,2]
[365748248,1749873046405,-500.46754569,0.00017973,2]
[365748249,1749873046415,-501.72251297,0.00017973,2]
[365748250,1749873046424,-165.85,0.0001799,2]
[365748251,1749873046433,-151.0,0.00017993,2]
[365748252,1749873046443,-151.326686,0.00017993,2]
[365748253,1749873046454,-240.35832168,0.00017993,2]
[365748254,1749873046463,-500.0,0.00017993,2]
[365748255,1749873046473,-500.0,0.00017993,2]
[365748256,1749873046482,-98.68630502,0.00017993,2]
[365748264,1749873071944,202.0,0.00015155,2]
[365748276,1749873584990,474.21,0.00015035,2]
[365748292,1749873877255,154.9,0.00013699,2]
[365748305,1749874092216,200.0,0.00015067,2]
[365748306,1749874092487,200.0,0.00015691,2]
[365748310,1749874231459,-200.0,0.00016315,3]
[365748311,1749874231469,-252.95011032,0.00016685,2]
[365748312,1749874231480,-47.04988968,0.00016685,2]
[365748313,1749874231489,-1200.0,0.00016685,2]
[365748314,1749874231499,-304.49,0.00016686,2]
[365748315,1749874231508,-301.95,0.00016686,2]
[365748316,1749874231517,-305.43,0.00016686,2]
[365748317,1749874231527,-304.06,0.00016686,2]
[365748318,1749874231538,-301.6,0.00016686,2]
[365748319,1749874231549,-304.32,0.00016686,2]
[365748320,1749874231559,-2922.0,0.00016748,2]
[365748321,1749874231570,-1000.0,0.00016875,2]
[365748322,1749874231580,-200.0,0.00016939,4]
[365748323,1749874231590,-335.43,0.00016997,2]
[365748324,1749874231599,-178.2,0.00017156,2]
[365748325,1749874231609,-474.21,0.00017299,2]
[365748326,1749874231618,-305.88,0.000173,2]
[365748327,1749874231628,-304.37,0.000173,2]
[365748328,1749874231637,-303.31,0.000173,2]
[365748329,1749874231646,-304.69,0.000173,2]
[365748330,1749874231655,-303.27,0.000173,2]
[365748331,1749874231665,-305.3,0.000173,2]
[365748332,1749874231674,-300.74,0.000173,2]
[365748333,1749874231683,-257.6536555,0.000173,2]
[365748334,1749874231695,-45.0563445,0.000173,2]
[365748335,1749874231704,-304.82,0.000173,2]
[365748336,1749874231714,-724.11138227,0.000173,2]
[365748337,1749874231730,-1275.88861773,0.000173,2]
[365748338,1749874231740,-699.40493485,0.00017429,2]
[365748339,1749874231750,-207.4,0.00017429,2]
[365748340,1749874231759,-4006.0,0.00017534,2]
[365748341,1749874231768,-200.0,0.00017563,5]
[365748342,1749874231778,-815.664177,0.00017633,2]
[365748343,1749874231788,-201.0,0.0001764,2]
[365748345,1749874231798,-437.02692169,0.00017667,2]
[365748347,1749874231807,-200.0,0.00017855,2]
[365748349,1749874231816,-200.0,0.00017856,2]
[365748350,1749874231825,-151.0,0.0001789,2]
[365748351,1749874231835,-1000.0,0.0001789,2]
[365748352,1749874231844,-1000.0,0.0001789,2]
[365748353,1749874231853,-227.9411,0.00017899,2]
[365748354,1749874231863,-3035.51920029,0.000179,2]
[365748355,1749874231872,-578.7754,0.000179,2]
[365748356,1749874231881,-2275.26454147,0.000179,2]
[365748358,1749874231890,-177.14875672,0.00017901,2]
[365748359,1749874231899,-305.77,0.0001797,2]
[365748362,1749874231914,-500.0,0.00017973,2]
[365748363,1749874231923,-501.9233558,0.00017973,2]
[365748365,1749874231932,-500.0,0.00017973,2]
[365748367,1749874231941,-2070.44296265,0.00017983,2]
[365748370,1749874231951,-303.24,0.00017992,2]
[365748371,1749874231960,-155.727,0.00017993,2]
[365748374,1749874231969,-391.13571245,0.00017993,2]
[365748376,1749874231983,-608.86428755,0.00017993,2]
[365748378,1749874231991,-640.9882462,0.00017993,2]
[365748380,1749874232002,-359.0117538,0.00017993,2]
[365748382,1749874232011,-1000.0,0.00017993,2]
[365748384,1749874232020,-1000.0,0.00017993,2]
[365748385,1749874232030,-1000.0,0.00017993,2]
[365748388,1749874232039,-1000.0,0.00017993,2]
[365748391,1749874232048,-1000.0,0.00017993,2]
[365748394,1749874232058,-1000.0,0.00017993,2]
[365748397,1749874232066,-1000.0,0.00017993,2]
[365748400,1749874232075,-1000.0,0.00017993,2]
[365748403,1749874232085,-1000.0,0.00017993,2]
[365748405,1749874232094,-1000.0,0.00017993,2]
[365748407,1749874232103,-1000.0,0.00017993,2]
[365748408,1749874232112,-1000.0,0.00017993,2]
[365748410,1749874232121,-1000.0,0.00017993,2]
[365748412,1749874232130,-1000.0,0.00017993,2]
[365748414,1749874232140,-1000.0,0.00017993,2]
[365748416,1749874232149,-1000.0,0.00017993,2]
[365748418,1749874232159,-1000.0,0.00017993,2]
[365748420,1749874232168,-120.96286947,0.00017993,2]
[365748422,1749874232180,-426.845,0.00017993,2]
[365748425,1749874232191,-452.19213053,0.00017993,2]
[365748427,1749874232200,-391.09452457,0.00017993,2]
[365748429,1749874232211,-500.0,0.00017993,2]
[365748431,1749874232222,-108.90547543,0.00017993,2]
[365748433,1749874232231,-1000.0,0.00017993,2]
[365748435,1749874232241,-175.08769399,0.00017993,2]
[365748439,1749874232267,-824.91230601,0.00017993,2]
[365748441,1749874232276,-166.0299236,0.00017993,2]
[365748443,1749874232287,-690.22759958,0.00017993,2]
[365748445,1749874232300,-143.74247682,0.00017993,2]
[365748447,1749874232308,-831.10391217,0.00017993,2]
[365748717,1749874237674,-168.89608783,0.00017993,2]
[365748718,1749874237683,-731.71577624,0.00017993,2]
[365748720,1749874239578,-268.28422376,0.00017993,2]
[365748721,1749874239588,-1000.0,0.00017993,2]
[365748722,1749874239597,-294.52739894,0.00017993,2]
[365748723,1749874239681,-345.30924979,0.00017993,2]
[365748724,1749874239891,-360.16335127,0.00017993,2]
[365748725,1749874239901,-1000.0,0.00017993,2]
[365748726,1749874239915,-1000.0,0.00017993,2]
[365748727,1749874239924,-630.8656376,0.00017993,2]
[365748729,1749874242483,-339.16430366,0.00017993,2]
[365748730,1749874242587,-29.97005874,0.00017993,2]
[365748731,1749874242598,-1000.0,0.00017993,2]
[365748732,1749874242608,-226.63994126,0.00017993,2]
[365748751,1749874245569,-669.70199999,0.00017993,2]
[365748754,1749874271878,203.0,0.00015067,2]
[365748755,1749874331947,329.0,0.00015067,2]
[365748769,1749874361332,219.0,0.00015067,2]
[365748770,1749874381910,3409.10253399,0.0002,30]
[365748878,1749874775543,426.78,0.00015171,2]
[365748900,1749875143812,154.9,0.00013699,2]
[365748904,1749875172218,200.0,0.00015187,2]
[365748905,1749875172642,200.0,0.00015846,2]
[365748973,1749875325408,1045.35756876,0.0002,120]
[365748988,1749875431727,-178.2,0.00016486,2]
[365748989,1749875431738,-200.0,0.00016505,3]
[365748990,1749875431748,-163.07,0.00016521,2]
[365748991,1749875431758,-1200.0,0.00016748,2]
[365748992,1749875431767,-500.0,0.00016749,2]
[365748993,1749875431777,-500.0,0.00016749,2]
[365748994,1749875431786,-386.39943178,0.00016749,2]
[365748995,1749875431795,-500.0,0.00016749,2]
[365748996,1749875431807,-550.99154292,0.00016749,2]
[365748997,1749875431816,-500.0,0.00016749,2]
[365748998,1749875431825,-500.0,0.00016749,2]
[365748999,1749875431834,-500.0,0.00016749,2]
[365749000,1749875431844,-500.0,0.00016749,2]
[365749001,1749875431854,-500.0,0.00016749,2]
[365749002,1749875431863,-500.0,0.00016749,2]
[365749003,1749875431872,-500.0,0.00016749,2]
[365749004,1749875431883,-500.0,0.00016749,2]
[365749005,1749875431893,-220.4353485,0.00016749,2]
[365749006,1749875431903,-509.87825375,0.00016749,2]
[365749007,1749875431914,-500.0,0.00016749,2]
[365749008,1749875431923,-500.0,0.00016749,2]
[365749009,1749875431932,-500.0,0.00016749,2]
[365749010,1749875431941,-500.0,0.00016749,2]
[365749011,1749875431951,-500.0,0.00016749,2]
[365749012,1749875431960,-500.0,0.00016749,2]
[365749013,1749875431969,-500.0,0.00016749,2]
[365749014,1749875431978,-500.0,0.00016749,2]
[365749015,1749875431989,-500.0,0.00016749,2]
[365749016,1749875431999,-510.39374083,0.00016749,2]
[365749018,1749875432008,-112.68702054,0.00016749,2]
[365749037,1749875433373,-345.75000004,0.00016749,2]
[365749038,1749875433387,-41.56297942,0.00016749,2]
[365749039,1749875433397,-500.0,0.00016749,2]
[365749040,1749875433407,-500.0,0.00016749,2]
[365749041,1749875433418,-500.0,0.00016749,2]
[365749042,1749875433428,-500.0,0.00016749,2]
[365749043,1749875433438,-500.0,0.00016749,2]
[365749044,1749875433449,-500.0,0.00016749,2]
[365749045,1749875433459,-500.0,0.00016749,2]
[365749046,1749875433470,-500.0,0.00016749,2]
[365749047,1749875433486,-500.0,0.00016749,2]
[365749048,1749875433505,-500.0,0.00016749,2]
[365749049,1749875433515,-369.54983485,0.00016749,2]
[365749051,1749875437679,-130.45016515,0.00016749,2]
[365749052,1749875437689,-134.37483485,0.00016749,2]
[365749053,1749875437842,-365.62516515,0.00016749,2]
[365749054,1749875437852,-500.0,0.00016749,2]
[365749055,1749875437862,-376.21229286,0.00016749,2]
[365749056,1749875437873,-123.78770714,0.00016749,2]
[365749057,1749875437883,-500.0,0.00016749,2]
[365749058,1749875437893,-500.0,0.00016749,2]
[365749059,1749875437902,-500.0,0.00016749,2]
[365749060,1749875437912,-2069.86414784,0.0001675,2]
[365749061,1749875437923,-320.14840894,0.0001675,2]
[365749234,1749875440033,-12272.53240891,0.0001675,2]
[365749238,1749875442679,-1020.92920097,0.0001675,2]
[365749239,1749875445712,-1000.0,0.00016531,2]
[365749240,1749875445722,-12365.93040964,0.0001675,2]
[365749241,1749875445734,-634.40000001,0.0001675,2]
[365749242,1749875445823,-147295.83140135,0.0001675,2]
[365749243,1749875445833,-304.62,0.00016985,2]
[365749244,1749875445842,-41268.31563645,0.00017,2]
[365749245,1749875445852,-2199.42239002,0.00017,2]
[365749246,1749875445862,-200.0,0.00017164,4]
[365749247,1749875445872,-207.4,0.00017179,2]
[365749248,1749875445881,-151.0,0.00017185,2]
[365749249,1749875445890,-301.61,0.00017188,2]
[365749250,1749875445900,-304.04,0.00017188,2]
[365749251,1749875445909,-303.9,0.00017188,2]
[365749252,1749875446231,-300.26,0.00017188,2]
[365749253,1749875446281,-247.66,0.00017188,2]
[365749254,1749875446291,-301.55,0.00017188,2]
[365749255,1749875446300,-253.03,0.00017189,2]
[365749256,1749875446310,-249.12,0.00017189,2]
[365749257,1749875446319,-252.54,0.00017189,2]
[365749258,1749875446329,-245.13,0.00017189,2]
[365749259,1749875446338,-305.0,0.00017189,2]
[365749260,1749875446348,-248.74,0.0001719,2]
[365749261,1749875446358,-252.41,0.0001719,2]
[365749262,1749875446367,-254.59,0.0001719,2]
[365749263,1749875446377,-248.13,0.0001719,2]
[365749264,1749875446387,-300.2,0.0001719,2]
[365749265,1749875446396,-251.43,0.0001719,2]
[365749266,1749875446406,-303.74,0.0001719,2]
[365749267,1749875446415,-250.53,0.00017192,2]
[365749268,1749875446424,-253.23,0.00017192,2]
[365749269,1749875446434,-249.49,0.00017192,2]